[Event "XTX Markets London Classic-Elite 2024"]
[Site "London"]
[Date "2024.11.29"]
[Round "1.1"]
[White "Vitiugov, Nikita"]
[Black "Ju, Wenjun"]
[Result "1-0"]
[WhiteElo "2668"]
[BlackElo "2563"]
[Annotator "TA"]
[PlyCount "117"]
[EventDate "2024.??.??"]
[TimeControl "60"]

{[%evp 49,117,9,22,32,71,61,49,47,55,35,73,72,78,84,85,89,92,72,73,66,76,77,99,97,75,68,130,129,139,131,176,180,175,68,85,85,85,85,197,199,169,114,252,199,373,366,411,354,363,361,362,324,271,0,337,323,475,437,379,313,601,580,557,445,29959,12836,9146,11005,5114,1592]} 1. e4 {[%emt 0:00:18]} c5 {[%emt 0:00:05]} 2. Nf3 {[%emt 0:00:33]} Nc6 {[%emt 0:00:05]} 3. Bb5 {[%emt 0:00:53]} d6 {[%emt 0:00:12]} 4. O-O {[%emt 0:01:02]} Bd7 {[%emt 0:00:13]} 5. Re1 {[%emt 0:01:00]} Nf6 {[%emt 0:00:11]} 6. c3 {[%emt 0:00:52]} a6 {[%emt 0:00:12]} 7. Bf1 {[%emt 0:00:28]} e5 {[%emt 0:00:33]} 8. h3 {[%emt 0:01:04] 8.d4 gains popularity.} Be7 {[%emt 0:00:27]} 9. d4 {[%emt 0:00:18]} cxd4 {[%emt 0:00:05] B51: Sicilian: Moscow Variation (3 Bb5+) without 3...Bd7.} 10. cxd4 {[%emt 0:00:04]} exd4 {[%emt 0:00:04]} 11. Nxd4 {[%emt 0:00:07]} d5 {[%emt 0:00:04]} 12. exd5 {[%emt 0:01:05]} Nxd5 {[%emt 0:00:04]} 13. Bc4 {[%emt 0:00:43]} Nb6 {[%emt 0:00:46]} 14. Bb3 {[%emt 0:05:16]} O-O {[%emt 0:01:48]} 15. Nc3 {[%emt 0:02:25]} Nxd4 $146 {[%emt 0:15:41]} ({Predecessor:} 15... Bf6 16. Nxc6 Bxc6 17. Qh5 Qd3 18. Be3 Bxc3 19. bxc3 Nd7 20. Bd4 Qg6 21. Qxg6 hxg6 {½-½ Grebnev,A (2550)-Vetokhin,S (2444) RUS-ch U20 Ekaterinburg 2024 (4)}) ({RR} 15... Bf6 16. Nxc6 Bxc6 17. Qh5 Qd3 18. Be3 Bxc3 19. bxc3 Nd7 20. Bd4 Qg6 21. Qxg6 hxg6 22. Re7 Nf6 23. h4 Rad8 24. f3 Nd5 25. Re5 Rfe8 26. Rae1 Rxe5 27. Rxe5 Nc7 28. Kf2 Nb5 29. Re7 Nxd4 30. cxd4 {Grebnev,A (2550)-Vetokhin,S (2444) Yekaterinburg RUS 2024 ½-½ (41)}) ({RR} 15... Bf6 16. Nxc6 Bxc6 17. Qh5 Qd3 18. Be3 Bxc3 19. bxc3 Nd7 20. Bd4 Qg6 21. Qxg6 hxg6 22. Re7 Nf6 23. h4 Rad8 24. f3 Nd5 25. Re5 Rfe8 26. Rae1 Rxe5 27. Rxe5 Nc7 28. Kf2 Nb5 29. Re7 Nxd4 30. cxd4 {Grebnev,A (2550)-Vetokhin,S (2444) Yekaterinburg RUS 2024 ½-½ (41)}) 16. Qxd4 {[%emt 0:00:16]} Bf6 {[%emt 0:00:02]} 17. Qf4 {[%emt 0:03:13]} Bc6 {[%emt 0:14:26]} 18. Rd1 {[%emt 0:08:27]} Qe7 {[%emt 0:03:42]} 19. Be3 {[%emt 0:04:48]} Be5 {[%emt 0:00:09]} 20. Qf5 {[%emt 0:07:04]} g6 {[%emt 0:08:20]} 21. Qg4 {[%emt 0:02:56]} Bc7 {[%emt 0:15:21]} 22. Bf4 {[%emt 0:03:22]} Bxf4 {[%emt 0:04:06]} 23. Qxf4 {[%emt 0:00:12]} Rad8 {[%emt 0:00:07]} 24. h4 {[%emt 0:07:10]} Nd7 {[%emt 0:06:58]} 25. Nd5 {[%emt 0:13:38]} Qe5 {[%emt 0:06:51]} (25... Bxd5 {simplifies} 26. Bxd5 b5 27. Rac1 Nf6) 26. Qb4 {[%emt 0:10:06]} Nf6 {[%emt 0:06:52]} 27. Re1 {[%emt 0:10:19]} Qd6 {[%emt 0:10:20]} 28. Ne7+ {[%emt 0:01:21]} Kg7 {[%emt 0:00:03]} 29. Qc3 {[%emt 0:03:24]} Qf4 {[%emt 0:03:05]} 30. Nxc6 {[%emt 0:03:57]} bxc6 {[%emt 0:01:32]} 31. g3 {[%emt 0:01:26]} (31. Qxc6 Qxh4 32. g3 Qh5 $11) 31... Qd2 {[%emt 0:00:08]} 32. Rac1 {[%emt 0:00:45]} a5 {[%emt 0:00:21]} 33. Red1 {[%emt 0:03:13]} (33. Qxc6 $2 Rc8 34. Rf1 Rxc6 $19 (34... Qxb2 35. Qxc8 Rxc8 36. Rxc8 $14)) 33... Qxc3 {[%emt 0:00:15]} 34. Rxc3 {[%emt 0:00:02]} Rxd1+ {[%emt 0:01:22]} 35. Bxd1 {[%emt 0:00:02]} Rd8 {[%emt 0:00:03]} 36. Bb3 {[%emt 0:01:03]} Rd6 {[%emt 0:00:47]} 37. Rc5 {[%emt 0:02:49]} Ne4 {[%emt 0:00:03]} (37... Rd2 38. Rxc6 (38. Rxa5 Rxb2 39. Ra7 Nd5 $16) 38... Rxb2 (38... Ne4 39. Rc2 $16) 39. Rc7 $16) (37... Ng4 $14) 38. Rxa5 $16 {[%emt 0:00:38]} Rd2 {[%emt 0:00:04]} 39. Ra7 {[%emt 0:01:19]} Rxf2 {[%emt 0:00:04]} 40. Re7 {[%emt 0:00:40]} Re2 {[%emt 0:00:04]} 41. Rxf7+ {[%emt 0:31:34]} (41. Bc4 $1 $18 Re1+ 42. Kg2) 41... Kh6 $14 {[%emt 0:30:56]} 42. g4 {[%emt 0:00:00]} (42. Re7 $6 Re3 $11) 42... g5 {[%emt 0:00:00]} 43. h5 $1 {[%emt 0:00:00]} Rxb2 {[%emt 0:00:00]} (43... Nc5 $16 {was called for.}) 44. Be6 $1 $18 {[%emt 0:00:00]} Nc3 {[%emt 0:00:00]} 45. Bc4 {[%emt 0:00:00]} ({White should try} 45. Kf1 $18 {Threatening mate with Bf5.} Ne4 46. Kg1) 45... Rb1+ {[%emt 0:00:00] [#]} (45... Rd2 $16) 46. Kf2 $1 $18 {[%emt 0:00:00]} Ne4+ $2 {[%emt 0:00:00]} (46... Rd1 47. Rf6+ Kg7 48. Rxc6 Ne4+ 49. Ke3 Nf6 50. h6+ Kg6) 47. Ke3 {[%emt 0:00:00]} Re1+ {[%emt 0:00:00]} 48. Kd4 {[%emt 0:00:00]} c5+ {[%emt 0:00:00]} 49. Kd5 {[%emt 0:00:00]} Rd1+ {[%emt 0:00:00]} 50. Ke5 {[%emt 0:00:00]} (50. Kxe4 Rd4+ 51. Kf3 Rxc4 $14) 50... Re1 {[%emt 0:00:00]} 51. Kd5 {[%emt 0:01:05]} Rd1+ $1 {[%emt 0:00:00]} 52. Kc6 {[%emt 0:00:03]} (52. Kxe4 Rd4+ 53. Kf3 Rxc4 $16) 52... Rd6+ {[%emt 0:06:40]} (52... Rd4 {is a better defense.}) 53. Kc7 $18 {[%emt 0:00:21]} Rd4 {[%emt 0:00:19]} 54. Bb3 {[%emt 0:01:09]} Rd2 $2 {[%emt 0:00:35]} (54... Rb4 55. Be6 Ng3 56. Rf6+ Kg7) 55. Be6 $18 {[%emt 0:01:08]} Nd6 {[%emt 0:01:35]} 56. Rd7 {[%emt 0:01:38]} Nb5+ {[%emt 0:00:26] [#]} (56... Ne8+ $18 57. Kc6 Rxd7 58. Kxd7 (58. Bxd7 c4 $11) 58... Nf6+ 59. Kd6 c4) 57. Kb6 $1 {[%emt 0:00:47]} Rxd7 {[%emt 0:01:20]} 58. Bxd7 {[%emt 0:00:02]} Nc3 {[%emt 0:00:10]} 59. a4 {[%emt 0:01:03]} ({Less strong is} 59. Kxc5 Nxa2 60. Kd4 Nc1 $11) 1-0

[Event "XTX Markets London Classic-Elite 2024"]
[Site "London"]
[Date "2024.11.29"]
[Round "1.2"]
[White "Mamedyarov, Shakhriyar"]
[Black "Vidit, Santosh Gujrathi"]
[Result "1/2-1/2"]
[WhiteElo "2738"]
[BlackElo "2739"]
[Annotator "TA"]
[PlyCount "60"]
[EventDate "2024.??.??"]
[TimeControl "60"]

{[%evp 9,60,14,18,0,5,0,7,-19,-13,-21,17,24,28,0,0,-16,16,0,0,0,0,0,-17,-11,0,-11,-12,-9,-7,-5,-2,-2,-4,0,-6,-19,0,0,0,0,0,0,0,-5,0,-14,0,-25,0,-7,0,0,0]} 1. d4 {[%emt 0:00:03]} Nf6 {[%emt 0:00:38]} 2. Bg5 {[%emt 0:00:08]} d5 {[%emt 0:00:23]} 3. e3 {[%emt 0:00:14]} c6 {[%emt 0:01:59]} 4. Bd3 {[%emt 0:03:48]} Bg4 {[%emt 0:00:21]} 5. Ne2 {[%emt 0:02:15]} ({RR} 5. f3 Bh5 6. Nd2 Nbd7 7. c4 Bg6 8. Qc2 e5 9. cxd5 cxd5 10. dxe5 Bxd3 11. Qxd3 Nxe5 12. Qb3 Be7 13. Ne2 O-O 14. O-O h6 15. Bh4 Ng6 16. Bf2 Qa5 17. Rad1 Bc5 18. Qc2 Qb6 19. Qc3 Rfe8 {Nakamura,H (2788)-Yu Yangyi (2720) chess.com INT 2024 1-0 (60)}) ({RR} 5. f3 Bh5 6. c3 e6 7. Ne2 Bg6 8. e4 Be7 9. e5 Nfd7 10. Bxe7 Qxe7 11. O-O c5 12. a3 Nc6 13. f4 Bh5 14. Qd2 Bxe2 15. Bxe2 Qd8 16. b4 cxd4 17. cxd4 Qb6 18. Rd1 O-O 19. Nc3 Rac8 {Terry,R (2522)-Ashraf,A (2399) chess.com INT 2024 0-1 (44)}) 5... Nbd7 {[%emt 0:00:51]} 6. h3 {[%emt 0:03:57]} Bxe2 $146 {[%emt 0:15:23]} ({RR} 6... Bh5 7. Bf4 e6 8. c4 Bb4+ 9. Nbc3 dxc4 10. Bxc4 Nb6 11. Qb3 Nfd5 12. Bxd5 Nxd5 13. e4 Bxc3+ 14. bxc3 Bxe2 15. exd5 Ba6 16. dxe6 O-O 17. exf7+ {½-½ (17) Vavra,P (2371)-Jansa,V (2458) Bayern 2018}) ({RR} 6... Bh5 7. Bf4 e6 8. c3 Be7 9. Qb3 Qc8 10. c4 O-O 11. Nbc3 a5 12. O-O a4 13. Qc2 dxc4 14. Bxc4 b5 15. Bd3 Bg6 16. Bxg6 hxg6 17. Rac1 Qb7 18. Ne4 Nxe4 19. Qxe4 Rfc8 20. Qf3 Nb6 21. Nc3 {Terry,R (2520)-Dominguez Perez,L (2743) Berlin GER 2023 ½-½ (107)}) 7. Qxe2 {[%emt 0:00:18]} e5 {[%emt 0:00:09]} 8. c3 {[%emt 0:07:34]} h6 {[%emt 0:03:03]} 9. Bh4 {[%emt 0:00:38]} e4 {[%emt 0:00:10]} 10. Bc2 {[%emt 0:00:06]} Qb6 {[%emt 0:00:08]} 11. b3 {[%emt 0:01:47]} Bd6 {[%emt 0:05:53]} 12. O-O {[%emt 0:06:55]} O-O {[%emt 0:01:22][%cal Bh8f8,Bf8e8,Be8e7,Be7d7][%mdl 32]} (12... g5 $5 13. Bg3 $8 Bxg3 14. fxg3 g4 $11) 13. c4 {[%emt 0:06:58]} dxc4 {[%emt 0:15:30]} 14. Nd2 {[%emt 0:11:06]} ({But not} 14. bxc4 Qb2 15. c5 Be7 (15... Qxa1 16. cxd6 Qb2 17. Qd2 $17) 16. Bxf6 Bxf6 $19 (16... Nxf6 17. Qd2 $11)) 14... cxb3 {[%emt 0:04:53]} 15. Nxe4 {[%emt 0:00:13]} Nxe4 {[%emt 0:03:04]} 16. Bxe4 {[%emt 0:00:25]} Rfe8 {[%emt 0:04:53]} 17. Qg4 {[%emt 0:06:05]} Be7 {[%emt 0:01:24]} 18. Bf5 {[%emt 0:02:46]} b2 {[%emt 0:10:52]} 19. Rab1 {[%emt 0:00:16] Some like it hot} Bxh4 {[%emt 0:00:15]} 20. Bxd7 {[%emt 0:00:25]} Re7 {[%emt 0:00:24]} 21. Qxh4 {[%emt 0:05:37]} Rxd7 {[%emt 0:00:11]} 22. Qg4 {[%emt 0:00:16]} Rad8 {[%emt 0:04:15]} 23. Qe2 {[%emt 0:00:35]} c5 {[%emt 0:00:12]} 24. Rxb2 {[%emt 0:00:12]} Qd6 {[%emt 0:00:35]} 25. dxc5 {[%emt 0:02:19]} Qxc5 {[%emt 0:00:07]} 26. Rc2 {[%emt 0:00:23]} Qe5 {[%emt 0:01:27]} 27. Rfc1 {[%emt 0:00:30]} g6 {[%emt 0:00:30]} 28. h4 {[%emt 0:00:57]} h5 {[%emt 0:00:18]} 29. g3 {[%emt 0:00:16]} Kg7 {[%emt 0:00:28]} 30. Kg2 {[%emt 0:01:05]} b6 {[%emt 0:00:49] A rather calm draw. Weighted Error Value: White=0.06 (flawless) /Black=0.06 (flawless) . Inaccurate: 	White=2 	Black=2 OK: 	White=13 	Black=9 Best: 	White=1 	---} 1/2-1/2

[Event "XTX Markets London Classic-Elite 2024"]
[Site "London"]
[Date "2024.11.29"]
[Round "1.3"]
[White "Hong, Andrew"]
[Black "Royal, Shreyas"]
[Result "1/2-1/2"]
[WhiteElo "2572"]
[BlackElo "2520"]
[Annotator "RC"]
[PlyCount "132"]
[EventDate "2024.??.??"]
[TimeControl "60"]

1. e4 {[%emt 0:00:06]} c6 {[%emt 0:00:13]} 2. Nf3 {[%emt 0:01:47]} d5 {[%emt 0:00:07]} 3. d3 {[%emt 0:00:34]} dxe4 {[%emt 0:00:48]} 4. dxe4 {[%emt 0:00:08]} Qxd1+ {[%emt 0:00:04]} 5. Kxd1 {[%emt 0:00:06]} Nf6 {[%emt 0:00:07]} 6. Nbd2 {[%emt 0:00:35]} Nbd7 {[%emt 0:00:07]} 7. Ne1 {[%emt 0:01:53]} Nc5 {[%emt 0:00:50]} 8. f3 {[%emt 0:00:22]} e5 {[%emt 0:01:18]} 9. Nc4 {[%emt 0:01:05]} Nfd7 {[%emt 0:00:26]} 10. a4 {[%emt 0:04:58]} a5 {[%emt 0:03:55]} 11. Be3 {[%emt 0:03:18]} f6 {[%emt 0:03:58]} 12. h4 {[%emt 0:05:33]} ({RR} 12. g3 Kd8 13. Bh3 Kc7 14. Nd3 b6 15. Re1 Ba6 16. Nxb6 Kxb6 17. Bxd7 Rd8 18. b4 Bxd3 19. bxc5+ Bxc5 20. cxd3 Bxe3 21. Rb1+ Kc7 22. Bxc6 Rxd3+ 23. Ke2 Rc3 24. Bd5 Kd6 25. Red1 Bd4 26. Rd3 Rhc8 {Navara,D (2689)-Saric,I (2647) Czech Republic CZE 2024 ½-½}) 12... h5 $146 {[%emt 0:06:20]} ({RR} 12... Kd8 13. h5 Kc7 14. g3 Be7 15. h6 g6 16. Nd3 Rd8 17. Kc1 Nxd3+ 18. Bxd3 Nc5 19. Be2 Be6 20. b3 b6 21. Kb2 Nd7 22. f4 Bc5 23. Bxc5 Nxc5 24. fxe5 fxe5 25. Nxe5 Rd2 26. Bc4 Re8 27. Rhf1 {Predke,A (2676)-Ivanisevic,I (2593) Moscow 2019 1-0 (38)}) 13. Nd3 {[%emt 0:12:14]} Be7 {[%emt 0:15:41]} 14. g3 {[%emt 0:08:11]} Kf7 {[%emt 0:08:31]} 15. Bh3 {[%emt 0:06:23]} Rd8 {[%emt 0:04:00]} 16. Ke2 {[%emt 0:00:56]} Nxd3 {[%emt 0:08:06]} 17. cxd3 {[%emt 0:00:25]} Ra6 {[%emt 0:08:56]} 18. Rac1 {[%emt 0:19:18]} Nf8 {[%emt 0:01:07]} 19. Bxc8 {[%emt 0:02:46]} Rxc8 {[%emt 0:00:05]} 20. f4 {[%emt 0:05:48]} Nd7 {[%emt 0:09:21]} 21. Rhf1 {[%emt 0:05:42]} Ke6 {[%emt 0:01:30]} 22. d4 {[%emt 0:04:42]} exd4 {[%emt 0:03:17]} 23. Bxd4 {[%emt 0:00:47]} b5 {[%emt 0:03:14]} 24. f5+ {[%emt 0:03:17]} Kf7 {[%emt 0:00:06]} 25. e5 {[%emt 0:01:06]} bxc4 {[%emt 0:05:50]} 26. e6+ {[%emt 0:00:06]} Ke8 {[%emt 0:00:03]} 27. exd7+ {[%emt 0:00:07]} Kxd7 {[%emt 0:00:03]} 28. Rxc4 {[%emt 0:00:33]} Rb8 {[%emt 0:04:12]} 29. Rd1 {[%emt 0:02:44]} Kc7 {[%emt 0:00:29]} 30. Kd3 {[%emt 0:05:32]} Bd6 {[%emt 0:02:40]} 31. Rg1 {[%emt 0:02:29]} Be5 {[%emt 0:00:05]} 32. Bxe5+ {[%emt 0:01:46]} fxe5 {[%emt 0:00:01]} 33. g4 {[%emt 0:00:13]} hxg4 {[%emt 0:00:36]} 34. Rgxg4 {[%emt 0:00:17]} Rxb2 {[%emt 0:00:39]} 35. Ke4 {[%emt 0:01:04]} Re2+ {[%emt 0:00:52]} 36. Kf3 {[%emt 0:00:02]} Re1 {[%emt 0:00:16]} 37. Kf2 {[%emt 0:01:27]} Rb1 {[%emt 0:00:17]} 38. Rxg7+ {[%emt 0:00:15]} Kd6 {[%emt 0:00:01]} 39. Rc2 {[%emt 0:00:43]} Kd5 {[%emt 0:03:00]} 40. Rd2+ {[%emt 0:00:40]} Ke4 {[%emt 0:00:08]} 41. f6 {[%emt 0:03:24]} c5 {[%emt 0:00:34]} 42. Re2+ {[%emt 0:12:07]} Kf5 {[%emt 0:00:05]} 43. Rg5+ {[%emt 0:07:57]} Kxf6 {[%emt 0:00:07]} 44. Rexe5 {[%emt 0:00:08]} Rb4 {[%emt 0:02:31]} 45. Ref5+ {[%emt 0:02:38]} Ke7 {[%emt 0:00:34]} 46. Rg7+ {[%emt 0:00:45]} Ke8 {[%emt 0:01:08]} 47. Rxc5 {[%emt 0:00:27]} Kf8 {[%emt 0:00:44]} 48. Rd7 {[%emt 0:00:52]} Rf6+ {[%emt 0:00:50]} 49. Kg3 {[%emt 0:00:44]} Rg6+ {[%emt 0:00:06]} 50. Kf3 {[%emt 0:00:20]} Rf6+ {[%emt 0:00:04]} 51. Ke3 {[%emt 0:00:46]} Re6+ {[%emt 0:00:04]} 52. Kd3 {[%emt 0:00:22]} Rxa4 {[%emt 0:00:22]} 53. h5 {[%emt 0:00:31]} Ra1 {[%emt 0:03:51]} 54. Ra7 {[%emt 0:01:07]} Rd1+ {[%emt 0:01:17]} 55. Kc2 {[%emt 0:00:13]} Rdd6 {[%emt 0:01:04]} 56. Rc8+ {[%emt 0:04:17]} Re8 {[%emt 0:00:01]} 57. Rcc7 {[%emt 0:00:01]} Rh6 {[%emt 0:02:57]} 58. Rxa5 {[%emt 0:00:29]} Kg8 {[%emt 0:00:04]} 59. Rd5 {[%emt 0:00:35]} Kh8 {[%emt 0:01:40]} 60. Kd3 {[%emt 0:00:07]} Rhe6 {[%emt 0:00:38]} 61. Rf5 {[%emt 0:01:13]} Re5 {[%emt 0:01:57]} 62. Rcf7 {[%emt 0:00:36]} Rxf5 {[%emt 0:00:10]} 63. Rxf5 {[%emt 0:00:04]} Kh7 {[%emt 0:00:04]} 64. Kd4 {[%emt 0:00:05]} Kh6 {[%emt 0:00:04]} 65. Re5 {[%emt 0:00:12]} Rxe5 {[%emt 0:00:03]} 66. Kxe5 {[%emt 0:00:03]} Kxh5 {[%emt 0:31:12]} 1/2-1/2

[Event "XTX Markets London Classic-Elite 2024"]
[Site "London"]
[Date "2024.11.29"]
[Round "1.4"]
[White "Jones, Gawain C B"]
[Black "Adams, Michael"]
[Result "1-0"]
[WhiteElo "2639"]
[BlackElo "2662"]
[Annotator "TA"]
[PlyCount "81"]
[EventDate "2024.??.??"]
[TimeControl "60"]

{[%evp 11,81,16,9,0,8,8,20,-6,-23,-1,-14,-10,16,7,21,-7,7,0,8,0,46,0,0,-21,-12,0,7,2,17,12,14,8,16,17,13,14,34,14,10,13,5,7,19,30,15,24,26,27,22,14,7,8,39,31,36,44,27,40,53,21,29,31,35,18,312,164,198,210,458,464,433,419]} 1. e4 {[%emt 0:00:15]} e5 {[%emt 0:00:07]} 2. Nf3 {[%emt 0:00:05]} Nc6 {[%emt 0:00:05]} 3. Bc4 {[%emt 0:00:04]} Nf6 {[%emt 0:00:12]} 4. d4 {[%emt 0:00:14]} exd4 {[%emt 0:00:12]} 5. e5 {[%emt 0:00:06]} Ne4 {[%emt 0:00:40]} 6. Qe2 {[%emt 0:00:15]} Nc5 {[%emt 0:00:42]} 7. c3 {[%emt 0:00:14]} d3 {[%emt 0:06:21]} 8. Qe3 {[%emt 0:00:06][%cal Oe1g1]} Be7 {[%emt 0:01:54]} 9. b4 {[%emt 0:00:26] The position is equal.} Ne6 {[%emt 0:00:12]} 10. O-O {[%emt 0:00:09][%cal Of1d1]} d6 {[%emt 0:08:35]} 11. exd6 {[%emt 0:00:18]} Bxd6 {[%emt 0:05:19]} ({RR} 11... cxd6 12. Qxd3 O-O 13. Nbd2 a5 14. Rb1 axb4 15. cxb4 Nxb4 16. Rxb4 d5 17. Rb2 dxc4 18. Qxd8 Nxd8 19. Nxc4 Be6 20. Re1 Bf6 21. Nce5 Re8 22. Ree2 Rc8 23. Rbc2 Rxc2 24. Rxc2 Bf5 25. Rd2 Ne6 26. h3 {Vitiugov,N (2719)-Wang,H (2730) St Petersburg 2018 0-1 (41)}) 12. Nbd2 {[%emt 0:00:13][%cal Of1d1]} O-O {[%emt 0:01:25]} 13. Ne4 {[%emt 0:00:30]} Bf4 $1 {[%emt 0:03:12]} 14. Qe1 $146 {[%emt 0:00:09]} (14. Qxd3 {simplifies} Qxd3 15. Bxd3 Bxc1 16. Rfxc1 Nf4 17. Bf1) ({RR} 14. Qxd3 Qxd3 15. Bxd3 Bxc1 16. Rfxc1 Nf4 17. Bf1 b6 18. g3 Ne6 19. Bg2 Bb7 20. Neg5 Nxg5 21. Nxg5 Rad8 22. Rd1 Rfe8 23. h4 h6 24. Nh3 Rxd1+ 25. Rxd1 Rd8 26. Rxd8+ Nxd8 27. Nf4 Kf8 28. Bxb7 Nxb7 {Poysti,N (2117)-Blagojevic,D (2486) Veliko Gradiste 2018 ½-½ (37)}) ({RR} 14. Qxd3 Qxd3 15. Bxd3 Bxc1 16. Rfxc1 Nf4 17. Bf1 Bg4 18. Nd4 Nxd4 19. cxd4 Rac8 20. Nc5 b6 21. Nd3 Nxd3 {½-½ (21) Lucas,A (2359)-Demuth,A (2484) Chartres FRA 2023}) 14... Bxc1 {[%emt 0:08:17]} 15. Qxc1 {[%emt 0:01:29]} d2 {[%emt 0:09:42]} 16. Qc2 {[%emt 0:03:48]} (16. Nfxd2 Ne5 $15) (16. Nexd2 $14 Nf4 17. Ne4) 16... Nf4 $11 {[%emt 0:03:31]} 17. Rfd1 {[%emt 0:20:52][%cal Ob4b5]} Bf5 {[%emt 0:02:23] ...Re8 is the strong threat.} 18. Qxd2 {[%emt 0:01:12]} Qxd2 {[%emt 0:02:30]} 19. Nexd2 {[%emt 0:00:06][%cal Be4d2,Bd2c4,Bc4e3][%mdl 32]} Rfe8 {[%emt 0:09:10]} 20. g3 {[%emt 0:06:36]} Ng6 {[%emt 0:00:32]} 21. Bd5 {[%emt 0:01:00]} Nge7 {[%emt 0:02:53]} 22. Bb3 {[%emt 0:00:15]} h6 {[%emt 0:02:32]} 23. Nc4 {[%emt 0:04:50]} Ng6 {[%emt 0:10:35]} 24. Ba4 {[%emt 0:07:51]} Bg4 {[%emt 0:06:11]} 25. Bxc6 {[%emt 0:00:57]} bxc6 {[%emt 0:00:02]} 26. Kg2 {[%emt 0:00:13]} c5 {[%emt 0:03:07]} 27. Ne3 {[%emt 0:05:54]} Bxf3+ {[%emt 0:03:33]} 28. Kxf3 {[%emt 0:00:05]} cxb4 {[%emt 0:01:12]} 29. cxb4 {[%emt 0:00:06]} c6 {[%emt 0:00:04]} 30. a4 {[%emt 0:06:08]} a5 {[%emt 0:03:43]} 31. b5 {[%emt 0:01:09]} Rab8 {[%emt 0:02:39]} 32. bxc6 {[%emt 0:02:45]} Ne5+ {[%emt 0:00:07]} 33. Kg2 {[%emt 0:00:10]} Nxc6 {[%emt 0:00:05]} 34. Rac1 {[%emt 0:01:23]} Re6 {[%emt 0:01:13]} 35. Rc5 {[%emt 0:02:49]} Rb2 $1 {[%emt 0:00:35]} 36. Nd5 $36 {[%emt 0:02:14][%cal Oc5c6][%mdl 2048] Black must now prevent Rxc6! White is more active.} Nb4 {[%emt 0:02:55]} 37. Nf4 {[%emt 0:04:48] Prevents Ree2.} (37. Rxa5 Ree2 38. Nxb4 Rxf2+ 39. Kg1 Rg2+ 40. Kf1 Rxh2 (40... Rbf2+ 41. Ke1 $11) 41. Rd8+ Kh7 $11) 37... Ra6 $2 {[%emt 0:00:38][%mdl 8192] Black cannot hold the game after this.} (37... Rc6 $1 $11 38. Rd8+ (38. Rxa5 Rcc2 $11) 38... Kh7) 38. Rc8+ {[%emt 0:04:06]} Kh7 {[%emt 0:00:01]} 39. Rd7 {[%emt 0:00:27]} Rc6 $2 {[%emt 0:00:06] [#]} (39... Nc6 {was called for.} 40. h4 (40. Rxf7 Ne5 $18) 40... Rb8 41. Rxb8 Nxb8 42. Rxf7 Rd6) 40. Rf8 $1 $18 {[%emt 0:02:39][%cal Od7d8] And now Rdd8! would win.} Rf6 {[%emt 0:02:35] [#]} ({Inferior is} 40... Rcc2 41. Rfxf7 (41. Nh3 Rd2 $16) 41... Rxf2+ 42. Kg1 Rxf4 43. Rxg7+ (43. Rxf4 h5 $18) (43. gxf4 Kg6 $18) 43... Kh8 44. gxf4) 41. Rdd8 $1 {[%emt 0:32:27] Weighted Error Value: White=0.11 (very precise) /Black=0.24 (precise) . Loses game: 	--- 	Black=1 Mistake: 	White=1 	Black=2 Inaccurate: 	White=4 	Black=2 OK: 	White=15 	Black=15 Best: 	White=1 	Black=3 Strong: 	White=2 	Black=2} ({Not} 41. Rfxf7 Rxf7 42. Rxf7 Nc2 $16) (41. Rdxf7 Nd5 $16) 1-0

[Event "XTX Markets London Classic-Elite 2024"]
[Site "London"]
[Date "2024.11.30"]
[Round "2.1"]
[White "Ju, Wenjun"]
[Black "Adams, Michael"]
[Result "1/2-1/2"]
[WhiteElo "2563"]
[BlackElo "2662"]
[Annotator "TA"]
[PlyCount "78"]
[EventDate "2024.??.??"]
[TimeControl "60"]

{[%evp 11,78,11,8,24,26,11,8,3,18,0,33,29,18,8,18,0,13,0,8,0,0,2,8,0,0,0,0,0,0,0,14,0,0,12,4,0,0,0,14,0,0,0,0,0,0,0,0,0,0,0,0,0,0,0,0,0,0,0,0,0,0,0,0,0,0,0,0,0,0]} 1. d4 {[%emt 0:00:05]} Nf6 {[%emt 0:00:07]} 2. c4 {[%emt 0:00:03]} e6 {[%emt 0:00:07]} 3. Nc3 {[%emt 0:00:05]} Bb4 {[%emt 0:00:10]} 4. e3 {[%emt 0:00:03]} O-O {[%emt 0:00:15]} 5. Bd3 {[%emt 0:00:04]} Re8 {[%emt 0:00:25]} 6. Nge2 {[%emt 0:04:13]} d5 {[%emt 0:00:22]} 7. O-O {[%emt 0:00:15]} Bf8 {[%emt 0:02:54]} 8. b3 {[%emt 0:08:34]} ({RR} 8. Qc2 a6 9. b3 Nbd7 10. Bb2 b6 11. Rfd1 Bb7 12. Ng3 c5 13. cxd5 exd5 14. dxc5 bxc5 15. Nce2 Ne5 16. Nf4 g6 17. Be2 Rc8 18. Rac1 Qb6 19. Qd2 h5 20. h4 Bh6 21. b4 c4 22. Bd4 Qd6 {Sarana,A (2713)-Niemann,H (2733) chess.com INT 2024 0-1 (59)}) 8... b6 {[%emt 0:02:24]} ({RR} 8... Nbd7 9. e4 dxe4 10. Nxe4 Nxe4 11. Bxe4 e5 12. dxe5 Nxe5 13. Qxd8 Rxd8 14. Bf4 Re8 15. Ng3 c6 16. Rfe1 Ng6 17. Bxg6 Rxe1+ 18. Rxe1 fxg6 19. Re8 Kf7 20. Rd8 Be7 21. Rh8 b6 22. Ne4 h6 23. Kf1 {Lobanov,S (2506)-Kozionov,K (2449) Sochi RUS 2024 1-0 (39)}) 9. Bb2 {[%emt 0:04:51]} Bb7 {[%emt 0:00:46]} 10. Nf4 $146 {[%emt 0:03:02]} ({RR} 10. Rc1 Nbd7 11. cxd5 exd5 12. Nf4 c5 13. Qf3 Nb8 14. Rfd1 cxd4 15. exd4 a6 16. Bc4 b5 17. Nfxd5 bxc4 18. Nxf6+ Qxf6 19. Qxb7 Nc6 20. Re1 Ra7 21. Rxe8 Rxb7 22. Ba3 Rb8 23. Rce1 Rxe8 24. Rxe8 h6 {Bouah,L (2118)-February,J (1899) Pretoria 2018 0-1}) 10... a6 {[%emt 0:06:25]} 11. Qf3 {[%emt 0:08:48]} Nbd7 {[%emt 0:09:20]} 12. Rfd1 {[%emt 0:19:20] The position is equal.} c6 {[%emt 0:04:04]} 13. Nh5 {[%emt 0:08:32]} (13. Rac1 {feels hotter.} Bd6 14. Nh5 b5 15. Nxf6+ Nxf6 16. Qh3) 13... Nxh5 {[%emt 0:07:46]} 14. Qxh5 {[%emt 0:00:03][%csl Gd3][%cal Rh5h7] [#]} g6 {[%emt 0:00:05]} 15. Qe2 {[%emt 0:02:34]} Bg7 {[%emt 0:00:07]} 16. Rac1 {[%emt 0:00:28]} b5 {[%emt 0:04:36]} 17. a4 {[%emt 0:11:32]} b4 {[%emt 0:11:16]} 18. Nb1 {[%emt 0:00:02][%cal Bc3b1,Bb1d2,Bd2f3,Bf3e1][%mdl 32]} a5 {[%emt 0:04:25]} 19. Nd2 {[%emt 0:02:22]} Nc5 {[%emt 0:06:54]} 20. Bc2 {[%emt 0:00:32]} Ba6 {[%emt 0:01:04]} 21. Ba1 {[%emt 0:03:58]} Nd7 {[%emt 0:00:16]} 22. Bd3 {[%emt 0:00:02]} Rc8 {[%emt 0:07:27]} 23. Nf3 {[%emt 0:05:03]} Qb6 {[%emt 0:02:30]} 24. h3 {[%emt 0:01:19]} Qb7 {[%emt 0:02:15]} 25. Ne1 {[%emt 0:07:35]} dxc4 {[%emt 0:01:48]} 26. Bxc4 {[%emt 0:00:04]} Bxc4 {[%emt 0:00:05]} 27. Rxc4 {[%emt 0:00:08]} c5 {[%emt 0:02:42]} 28. dxc5 {[%emt 0:01:08]} Bxa1 {[%emt 0:04:12]} 29. Rxa1 {[%emt 0:00:03]} Rxc5 {[%emt 0:03:08]} 30. Rac1 {[%emt 0:01:15]} Rec8 {[%emt 0:02:14]} 31. Nf3 {[%emt 0:00:48]} Rxc4 {[%emt 0:05:46]} 32. Rxc4 {[%emt 0:00:04]} Rc5 {[%emt 0:00:46]} 33. Rxc5 {[%emt 0:03:25]} Nxc5 $11 {[%emt 0:00:03][%mdl 4096] Endgame. KQN-KQN} 34. Qc4 {[%emt 0:00:07]} Qc6 {[%emt 0:02:18]} 35. Kh2 {[%emt 0:03:45]} Qd6+ {[%emt 0:01:50]} 36. g3 {[%emt 0:00:06]} Qd1 {[%emt 0:02:30]} 37. Nd4 {[%emt 0:02:54]} Qd2 {[%emt 0:01:18]} 38. Qxc5 {[%emt 0:00:57]} Qxf2+ {[%emt 0:00:05]} 39. Kh1 {[%emt 0:00:01]} Qf1+ {[%emt 0:00:10] An interesting draw. Weighted Error Value: White=0.04 (flawless) /Black=0.02 (flawless) . Inaccurate: 	--- 	Black=1 OK: 	White=13 	Black=19 Best: 	White=1 	---} 1/2-1/2